bitfinex-derivatives/quotes_SOLF0:USTF0_20241227
["timestamp","ask_amount","ask_price","bid_price","bid_amount"]
[1735273054818,8.49085244,190.16,190.13,2.6333]
[1735273058523,81.60300126,190.18,190.13,2.6333]
[1735273059220,8.49085244,190.16,190.1,3.02]
[1735273059419,8.49085244,190.16,190.12,2.6334]
[1735273060718,70.47954882,190.18,190.1,3.02]
[1735273060919,70.47954882,190.18,190.14,2.633]
[1735273060920,78.97040126,190.18,190.14,2.633]
[1735273061223,70.47954882,190.18,190.11,8.49085244]
[1735273062015,70.47954882,190.18,190.16,2.6328]
[1735273063817,70.47954882,190.18,190.11,8.49085244]
[1735273064122,8.49085244,190.2,190.17,2.6326]
[1735273066022,8.49085244,190.2,190.19,2.6325]
[1735273066328,1.6891,190.23,190.15,11.51085244]
[1735273066622,10.17995244,190.23,190.15,11.51085244]
[1735273066921,8.49085244,190.23,190.17,8.49085244]
[1735273067515,8.49085244,190.23,190.22,2.632]
[1735273069626,8.49085244,190.23,190.2,2.6323]
[1735273069816,8.49085244,190.21,190.15,3.02]
[1735273071422,8.49085244,190.21,190.18,2.6325]
[1735273071621,8.49085244,190.21,190.15,3.02]
[1735273072024,8.49085244,190.21,190.2,2.6323]
[1735273072325,8.49085244,190.21,190.15,3.02]
[1735273072326,8.49085244,190.23,190.15,11.51085244]
[1735273073430,8.49085244,190.23,190.22,2.632]
[1735273077231,1.6885,190.25,190.23,2.6318]
[1735273077430,10.17935244,190.25,190.23,2.6318]
[1735273078836,10.17935244,190.25,190.17,8.49085244]
[1735273079033,8.49085244,190.23,190.17,8.49085244]
[1735273079233,8.49085244,190.21,190.1,92.16550319]
[1735273079426,11.12335244,190.19,190.14,2.6331]
[1735273079626,8.49085244,190.17,190.14,2.6331]
[1735273080135,8.49085244,190.15,190.12,2.6334]
[1735273080731,8.49085244,190.15,190.13,2.6332]
[1735273083236,8.49085244,190.15,190.1,3.02]
[1735273083439,3.1938,190.2,190.14,2.6331]
[1735273083636,8.49085244,190.17,190.14,2.6331]
[1735273087139,8.49085244,190.19,190.15,2.633]
[1735273087329,8.49085244,190.19,190.1,3.02]
[1735273087330,8.49085244,190.17,190.1,3.02]
[1735273088339,8.49085244,190.17,190.14,2.6331]
[1735273090434,3.1938,190.2,190.11,8.49085244]
[1735273090640,72.03073762,190.21,190.13,8.49085244]
[1735273091235,72.03073762,190.21,190.18,2.6325]
[1735273091430,72.03073762,190.21,190.16,3.02]
[1735273092635,8.49085244,190.22,190.16,3.02]
[1735273093442,8.49085244,190.22,190.2,2.6323]
[1735273094333,12.25866022,190.25,190.22,2.632]
[1735273094537,9.03396022,190.25,190.17,8.49085244]
[1735273094840,7.34546022,190.25,190.19,8.49085244]
[1735273095939,30.88049239,190.29,190.21,8.49085244]
[1735273096144,39.37134483,190.29,190.21,11.51085244]
[1735273096344,39.37134483,190.29,190.24,2.6316]
[1735273097342,39.37134483,190.29,190.21,11.51085244]
[1735273097545,10.01575244,190.29,190.25,2.6316]
[1735273098637,8.49085244,190.29,190.21,11.51085244]
[1735273098837,8.49085244,190.29,190.27,2.6313]
[1735273101050,2.6312,190.28,190.2,2.6322]
[1735273101244,8.49085244,190.25,190.2,3.0]
[1735273102247,8.49085244,190.25,190.22,2.6319]
[1735273103449,8.49085244,190.25,190.2,3.0]
[1735273103649,8.49085244,190.25,190.23,2.6319]
[1735273104640,8.49085244,190.27,190.25,2.6315]
[1735273104845,8.49085244,190.29,190.22,8.49085244]
[1735273106249,8.49085244,190.29,190.26,2.6314]
[1735273107246,8.49085244,190.29,190.27,2.6313]
[1735273108644,1.6656,190.3,190.25,3.0]
[1735273108845,80.48451906,190.31,190.28,2.6311]
[1735273109446,80.48451906,190.31,190.25,3.0]
[1735273109641,8.49085244,190.31,190.29,2.631]
[1735273110249,2.63611354,190.32,190.29,2.631]
[1735273110850,8.49085244,190.31,190.29,2.631]
[1735273111150,8.49085244,190.31,190.28,2.6312]
[1735273112156,2.63611354,190.32,190.26,8.49085244]
[1735273113349,74.60160314,190.37,190.32,2.6305]
[1735273113554,8.49085244,190.36,190.32,2.6305]
[1735273114346,8.49085244,190.36,190.3,3.0]
[1735273114347,71.97160314,190.37,190.3,3.0]
[1735273114550,71.97160314,190.37,190.3,11.49085244]
[1735273114755,71.97160314,190.37,190.32,8.49085244]
[1735273116257,8.49085244,190.38,190.35,2.6301]
[1735273116550,8.49085244,190.38,190.32,8.49085244]
[1735273116756,8.49085244,190.4,190.32,8.49085244]
[1735273116956,2.63462549,190.44,190.34,8.49085244]
[1735273117155,8.49085244,190.42,190.35,3.0]
[1735273118358,8.49085244,190.42,190.38,2.6297]
[1735273118955,8.49085244,190.42,190.39,2.6297]
[1735273121958,8.49085244,190.4,190.34,3.0]
[1735273122153,8.49085244,190.38,190.34,3.0]
[1735273122860,8.49085244,190.38,190.35,2.6302]
[1735273125349,2.6298,190.38,190.33,2.6304]
[1735273125551,2.6298,190.38,190.26,96.87894325]
[1735273125552,8.49085244,190.34,190.26,95.09704325]
[1735273125754,1.5801,190.37,190.26,95.09704325]
[1735273125755,8.49085244,190.32,190.26,95.09704325]
[1735273125960,71.96533061,190.39,190.31,8.49085244]
[1735273126162,80.45618305,190.39,190.31,11.49085244]
[1735273126559,80.45618305,190.39,190.36,2.6301]
[1735273128663,71.96533061,190.39,190.33,8.49085244]
[1735273128860,8.49085244,190.41,190.38,2.6298]
[1735273135167,8.49085244,190.39,190.31,3.0]
[1735273135466,8.49085244,190.39,190.32,3.0]
[1735273135969,2.6298,190.38,190.34,2.6304]
[1735273136769,8.49085244,190.37,190.33,2.6305]
[1735273137376,8.49085244,190.35,190.29,3.0]
[1735273137769,8.49085244,190.35,190.31,2.6307]
[1735273137964,14.38135244,190.35,190.27,8.49085244]
[1735273138160,15.95035244,190.35,190.27,8.49085244]
[1735273138770,15.95035244,190.35,190.3,2.6308]
[1735273141169,15.95035244,190.35,190.31,2.6308]
[1735273143470,7.4595,190.35,190.31,2.6308]
[1735273143675,8.49085244,190.33,190.26,92.09704325]
[1735273143872,8.49085244,190.31,190.2,4.8446]
[1735273144175,8.49085244,190.25,190.18,8.49085244]
[1735273144367,8.49085244,190.25,190.19,3.0]
[1735273144584,8.49085244,190.25,190.18,11.49085244]
[1735273144791,8.49085244,190.25,190.2,2.6323]
[1735273146184,11.12255244,190.25,190.2,2.6323]
[1735273146479,8.49085244,190.23,190.18,2.6325]
[1735273146673,11.12275244,190.23,190.15,8.49085244]
[1735273146879,11.12275244,190.23,190.16,3.0]
[1735273147277,11.12275244,190.23,190.15,8.49085244]
[1735273147478,11.12275244,190.23,190.15,11.49085244]
[1735273147988,8.49085244,190.21,190.15,11.49085244]
[1735273149681,8.49085244,190.21,190.19,2.6324]
[1735273149885,8.49085244,190.23,190.19,2.6324]
[1735273151784,8.49085244,190.23,190.15,11.49085244]
[1735273151986,11.12285244,190.23,190.18,2.6326]
[1735273161493,5.905,190.27,190.22,2.6319]
[1735273161695,2.6314,190.27,190.22,2.6319]
[1735273161889,7.34546022,190.33,190.23,8.49085244]
[1735273162088,7.34546022,190.33,190.2,3.0]
[1735273162089,15.83631266,190.33,190.25,8.49085244]
[1735273162393,15.83631266,190.33,190.27,8.49085244]
[1735273162597,7.34546022,190.33,190.27,8.49085244]
[1735273163095,7.34546022,190.33,190.3,2.6309]
[1735273163294,11.72195244,190.35,190.3,2.6309]
[1735273163494,8.49085244,190.33,190.3,2.6309]
[1735273166393,14.35215244,190.35,190.3,2.6309]
[1735273166600,1.6114,190.4,190.27,8.49085244]
[1735273166895,1.6114,190.4,190.33,8.49085244]
[1735273167097,8.49085244,190.41,190.33,11.49085244]
[1735273167591,87.78926365,190.42,190.35,8.49085244]
[1735273167990,80.44380343,190.42,190.38,2.6298]
[1735273169290,80.44380343,190.42,190.33,3.0]
[1735273169496,8.49085244,190.4,190.33,3.0]
[1735273170398,2.6297,190.39,190.34,2.6303]
[1735273170895,8.49085244,190.36,190.27,1.5959]
[1735273171100,2.6303,190.35,190.3,2.6309]
[1735273171296,8.49085244,190.37,190.3,8.49085244]
[1735273172202,13.27168791,190.4,190.28,3.0]
[1735273172402,2.6298,190.38,190.32,2.6306]
[1735273174801,13.27168791,190.4,190.3,3.0]
[1735273175905,71.95295099,190.42,190.3,16.27168791]
[1735273176107,71.95295099,190.42,190.33,13.27168791]
[1735273177000,74.58235099,190.42,190.36,2.6301]
[1735273178405,74.58235099,190.42,190.38,2.6298]
[1735273178606,74.58235099,190.42,190.35,3.0]
[1735273178907,71.95295099,190.42,190.35,3.0]
[1735273179306,2.6296,190.4,190.35,3.0]
[1735273179504,71.95295099,190.42,190.36,2.63]
[1735273179699,71.95295099,190.42,190.35,3.0]
[1735273180111,74.58225099,190.42,190.37,2.6299]
[1735273181205,71.95295099,190.42,190.35,3.0]
[1735273181906,2.6296,190.4,190.35,3.0]
[1735273182506,71.95295099,190.42,190.36,2.6301]
[1735273182715,74.58235099,190.42,190.36,2.6301]
[1735273185615,2.6295,190.41,190.36,2.6301]
[1735273185818,13.27168791,190.4,190.33,2.6305]
[1735273186018,13.27168791,190.4,190.3,3.0]
[1735273186310,2.6298,190.38,190.3,3.0]
[1735273186517,2.6298,190.38,190.33,2.6304]
[1735273188217,2.6298,190.38,190.34,2.6304]
[1735273194724,3.3091,190.41,190.34,8.49130003]
[1735273194925,2.6297,190.39,190.35,2.6302]
[1735273195126,71.95295099,190.42,190.34,8.49130003]
[1735273195321,74.58225099,190.42,190.38,2.6298]
[1735273195527,37.84689242,190.45,190.38,8.49130003]
[1735273195723,29.35559239,190.45,190.4,8.49130003]
[1735273196318,29.35559239,190.45,190.37,3.0]
[1735273196519,8.49130003,190.47,190.39,8.49130003]
[1735273197428,2.6289,190.45,190.41,2.6294]
[1735273200231,2.6292,190.43,190.39,2.6296]
[1735273201428,2.629,190.44,190.38,3.0]
[1735273201635,8.49130003,190.45,190.38,11.49130003]
[1735273202027,8.49130003,190.45,190.41,2.6293]
[1735273202332,8.49130003,190.45,190.38,11.49130003]
[1735273202533,8.49130003,190.45,190.38,3.0]
[1735273203035,2.629,190.44,190.36,8.49130003]
[1735273203237,2.629,190.44,190.38,8.49130003]
[1735273203430,2.629,190.44,190.38,11.49130003]
[1735273203633,7.34546022,190.47,190.4,8.49130003]
[1735273204238,29.35559239,190.49,190.42,8.49130003]
[1735273204437,29.35559239,190.49,190.43,3.0]
[1735273205039,29.35559239,190.49,190.44,8.49130003]
[1735273205239,95.5814046,190.52,190.48,2.6284]
[1735273205534,95.5814046,190.52,190.46,8.49130003]
[1735273205535,7.34546022,190.52,190.46,8.49130003]
[1735273206136,7.34546022,190.52,190.47,2.6285]
[1735273206437,8.49130003,190.53,190.46,8.49130003]
[1735273206638,8.49130003,190.53,190.5,2.6281]
[1735273207434,7.34546022,190.56,190.51,2.6279]
[1735273207636,8.49130003,190.55,190.48,11.49130003]
[1735273208141,7.34546022,190.57,190.5,2.6281]
[1735273208341,8.49130003,190.55,190.48,3.0]
[1735273209035,8.49130003,190.53,190.48,3.0]
[1735273209439,11.11910003,190.53,190.48,3.0]
[1735273209836,8.49130003,190.55,190.48,11.49130003]
[1735273210138,12.00056022,190.59,190.48,11.49130003]
[1735273210336,8.49130003,190.55,190.48,11.49130003]
[1735273210535,12.00056022,190.59,190.5,8.49130003]
[1735273210839,8.49130003,190.57,190.5,8.49130003]
[1735273211541,8.49130003,190.57,190.52,2.6279]
[1735273212240,119.77788336,190.62,190.52,8.49130003]
[1735273212442,8.49130003,190.59,190.53,3.0]
[1735273213148,119.77788336,190.62,190.53,3.0]
[1735273213448,8.49130003,190.59,190.53,3.0]
[1735273214443,11.11820003,190.59,190.54,2.6275]
[1735273214740,8.49130003,190.59,190.53,3.0]
[1735273215148,2.6271,190.58,190.53,5.6276]
[1735273216044,11.11850003,190.57,190.53,3.0]
[1735273216747,11.11850003,190.57,190.52,2.6279]
[1735273216948,2.6272,190.57,190.52,2.6279]
[1735273217145,11.11850003,190.57,190.52,2.6279]
[1735273218650,8.49130003,190.57,190.51,11.49130003]
[1735273218845,8.49130003,190.57,190.53,2.6277]
[1735273220355,8.49130003,190.57,190.55,2.6275]
[1735273220553,8.49130003,190.59,190.53,8.49130003]
[1735273221053,2.6267,190.61,190.53,8.49130003]
[1735273221249,112.43242314,190.62,190.57,8.49130003]
[1735273221551,30.43603314,190.66,190.59,8.49130003]
[1735273221743,30.43603314,190.66,190.58,3.0]
[1735273221744,30.43603314,190.66,190.63,2.6263]
[1735273221949,30.43603314,190.66,190.58,3.0]
[1735273221950,30.43603314,190.66,190.65,8.49130003]
[1735273222149,30.43603314,190.66,190.65,11.49130003]
[1735273222353,1.08044075,190.66,190.65,14.13740003]
[1735273222555,7.34546022,190.72,190.65,11.51130003]
[1735273222750,7.34546022,190.72,190.71,8.49130003]
[1735273223056,7.34546022,190.72,190.71,11.51130003]
[1735273223754,8.49130003,190.76,190.71,3.02]
[1735273223949,12.09526022,190.82,190.71,3.02]
[1735273224149,13.22033273,190.77,190.7,3.02]
[1735273224550,13.22033273,190.77,190.68,2.6256]
[1735273224753,13.22033273,190.74,190.67,3.02]
[1735273225352,2.6251,190.73,190.67,3.02]
[1735273225745,13.22033273,190.74,190.67,3.02]
[1735273226454,2.6251,190.72,190.67,3.02]
[1735273227751,2.6248,190.75,190.67,3.02]
[1735273227956,13.22033273,190.77,190.67,3.02]
[1735273228455,2.6249,190.74,190.68,2.6256]
[1735273228656,13.22033273,190.77,190.67,3.02]
[1735273229246,7.7698,190.82,190.67,3.02]
[1735273229450,13.22033273,190.79,190.67,3.02]
[1735273230055,15.84463273,190.79,190.72,2.6251]
[1735273230254,13.22033273,190.79,190.72,2.6251]
[1735273231153,13.22033273,190.79,190.72,5.6451]
[1735273231561,2.6243,190.78,190.72,5.6451]
[1735273232058,2.6245,190.77,190.72,3.02]
[1735273236461,2.6245,190.77,190.71,2.6252]
[1735273236663,2.6245,190.77,190.71,5.6452]
[1735273237062,2.6245,190.77,190.71,2.6252]
[1735273237359,2.6246,190.76,190.72,3.02]
[1735273237565,13.22033273,190.79,190.67,13.22033273]
[1735273237566,13.22033273,190.79,190.71,3.02]
[1735273238263,2.6247,190.76,190.71,3.02]
[1735273239362,2.6247,190.76,190.71,5.6453]
[1735273240560,2.6245,190.77,190.72,2.6251]
[1735273240754,2.6245,190.77,190.71,3.02]
[1735273240955,71.81755693,190.8,190.71,3.02]
[1735273241156,71.81755693,190.8,190.75,2.6247]
[1735273241564,71.81755693,190.8,190.71,3.02]
[1735273241864,2.6243,190.78,190.71,3.02]
[1735273242367,2.6243,190.78,190.69,13.22033273]
[1735273242368,2.6243,190.78,190.73,2.6249]
[1735273242566,2.6243,190.78,190.72,3.02]
[1735273242761,71.81755693,190.8,190.72,3.02]
[1735273243067,74.44175693,190.8,190.75,2.6247]
[1735273245057,74.44175693,190.8,190.72,3.02]
[1735273245262,74.44175693,190.8,190.76,2.6246]
[1735273245463,4.7498,190.82,190.72,16.24033273]
[1735273245663,2.6237,190.83,190.72,16.24033273]
[1735273246267,2.6235,190.84,190.78,8.45168473]
[1735273246465,2.6235,190.84,190.79,3.02]
[1735273246664,0.18655,190.86,190.79,3.02]
[1735273246974,0.18655,190.86,190.8,8.45168473]
[1735273247770,0.18655,190.86,190.81,2.6239]
[1735273248269,2.6235,190.85,190.79,3.02]
[1735273248469,2.6235,190.85,190.79,5.6442]
[1735273249068,0.18655,190.86,190.81,2.6239]
[1735273249069,2.80975,190.86,190.81,2.6239]
[1735273250472,2.6234,190.85,190.81,2.6239]
[1735273250870,0.18655,190.86,190.81,2.6239]
[1735273251270,0.18655,190.86,190.79,3.02]
[1735273251474,0.18655,190.86,190.8,2.624]
[1735273251870,2.6236,190.83,190.69,3.64998107]
[1735273252074,2.6236,190.83,190.75,13.20198502]
[1735273252276,2.6236,190.83,190.76,3.12]
[1735273252874,0.18655,190.86,190.76,3.12]
[1735273253071,2.6235,190.84,190.79,2.6241]
[1735273253277,0.18655,190.86,190.76,3.12]
[1735273253878,2.6235,190.85,190.8,2.624]
[1735273254080,2.6235,190.85,190.81,3.12]
[1735273254872,0.18655,190.86,190.81,3.12]
[1735273255172,0.18655,190.86,190.81,5.7439]
[1735273255173,2.80975,190.86,190.81,5.7439]
[1735273255375,2.80975,190.86,190.81,3.12]
[1735273256177,2.6232,190.86,190.81,3.12]
[1735273256576,2.6232,190.86,190.82,2.6237]
[1735273259170,2.6232,190.86,190.81,3.12]
[1735273259375,2.6232,190.86,190.81,5.7439]
[1735273260294,2.6232,190.86,190.81,3.12]
[1735273260478,2.6232,190.86,190.82,2.6237]
[1735273264889,2.6232,190.86,190.81,3.12]
[1735273265085,1.6317,190.87,190.81,5.7439]
[1735273265295,2.6234,190.85,190.81,5.7439]
[1735273266496,2.6233,190.86,190.82,2.6237]
[1735273269597,10.08103631,190.87,190.61,23.05283077]
[1735273269792,2.6236,190.84,190.79,11.07343631]
[1735273269998,10.08103631,190.87,190.81,8.44933631]
[1735273270702,2.6233,190.86,190.82,2.6237]
[1735273272089,2.6235,190.84,190.8,5.744]
[1735273272596,3.161,190.89,190.81,8.44933631]
[1735273272794,8.44933631,190.87,190.81,8.44933631]
[1735273273402,2.6233,190.86,190.82,2.6237]
[1735273273894,8.44933631,190.85,190.8,3.12]
[1735273274098,37.8049287,190.87,190.8,11.56933631]
[1735273274502,2.6234,190.85,190.82,2.6238]
[1735273275996,2.6235,190.84,190.8,11.56933631]
[1735273276595,2.6235,190.84,190.8,14.19323631]
[1735273278601,7.34546022,190.84,190.8,11.56933631]
[1735273278796,7.34546022,190.84,190.82,2.6237]
[1735273279499,42.53743109,190.84,190.82,2.6237]
[1735273280701,2.6232,190.86,190.82,2.6237]
[1735273281092,37.8049287,190.87,190.82,2.6237]
[1735273281803,29.35559239,190.86,190.82,2.6237]
[1735273282005,8.44933631,190.85,190.79,2.6241]
[1735273282302,29.35559239,190.86,190.79,2.6241]
[1735273282303,8.44933631,190.83,190.79,2.6241]
[1735273283301,11.07293631,190.83,190.79,2.6241]
[1735273285913,29.35559239,190.85,190.78,11.54933631]
[1735273286208,2.6235,190.84,190.8,2.624]
[1735273286400,8.44933631,190.81,190.71,4.6986]
[1735273286606,11.07383631,190.77,190.72,2.625]
[1735273288112,11.07383631,190.77,190.7,8.44933631]
[1735273288411,11.07383631,190.77,190.73,2.625]
[1735273289010,2.6246,190.76,190.72,2.6251]
[1735273289303,2.6246,190.76,190.7,8.44933631]
[1735273290412,2.6246,190.76,190.71,2.6253]
[1735273291205,2.6248,190.75,190.7,14.17473631]
[1735273291406,8.44933631,190.75,190.69,3.64998107]
[1735273291604,29.35559239,190.79,190.69,3.64998107]
[1735273291805,2.6248,190.75,190.7,2.6254]
[1735273292608,8.44933631,190.76,190.7,2.6254]
[1735273292812,2.6249,190.74,190.69,6.27548107]
[1735273293011,2.6249,190.74,190.69,3.64998107]
[1735273293210,2.6247,190.75,190.71,2.6253]
[1735273293510,8.44933631,190.76,190.71,2.6253]
[1735273293711,8.44933631,190.76,190.69,3.64998107]
[1735273294014,2.6248,190.75,190.7,2.6254]
[1735273294317,8.44933631,190.76,190.69,3.64998107]
[1735273295811,2.6248,190.75,190.69,3.64998107]
[1735273296012,8.44933631,190.76,190.69,3.64998107]
[1735273296413,2.6248,190.75,190.71,2.6253]
[1735273296713,2.6248,190.75,190.69,3.64998107]
[1735273298512,2.6248,190.75,190.7,2.6254]
[1735273300609,11.07383631,190.77,190.73,2.625]
[1735273305114,8.44933631,190.75,190.69,3.64998107]
[1735273305716,8.44933631,190.75,190.71,2.6252]
[1735273306117,8.44933631,190.75,190.69,3.64998107]
[1735273306318,8.44933631,190.75,190.72,2.6251]
[1735273307014,8.44933631,190.75,190.71,2.6253]
[1735273307217,11.07403631,190.75,190.71,2.6253]
[1735273307516,8.44933631,190.75,190.71,2.6253]
[1735273308118,8.44933631,190.75,190.7,3.1]
[1735273308417,8.44933631,190.75,190.72,2.6251]
[1735273308618,2.6246,190.76,190.7,3.1]
[1735273308619,8.44933631,190.77,190.7,11.54933631]
[1735273308818,71.81400031,190.81,190.72,8.44933631]
[1735273309010,15.79479653,190.83,190.76,8.44933631]
[1735273309216,15.79479653,190.83,190.77,3.1]
[1735273309511,18.41859653,190.83,190.79,2.6241]
[1735273310422,11.07313631,190.83,190.79,2.6241]
[1735273312421,8.44933631,190.83,190.79,2.6241]
[1735273314217,8.44933631,190.83,190.8,2.624]
[1735273317424,2.6232,190.86,190.82,2.6237]
[1735273317627,8.44933631,190.84,190.82,2.6237]
[1735273318726,11.07283631,190.84,190.8,2.624]
[1735273319026,8.44933631,190.84,190.79,3.08]
[1735273319322,8.44933631,190.84,190.81,2.6238]
[1735273319521,8.44933631,190.87,190.8,8.44933631]
[1735273320129,8.44933631,190.87,190.84,2.6235]
[1735273321021,8.44933631,190.87,190.83,2.6236]
[1735273321222,7.4192,190.88,190.83,2.6236]
[1735273321427,8.44933631,190.87,190.83,2.6236]
[1735273324630,8.44933631,190.87,190.8,8.44933631]
[1735273324631,2.6235,190.84,190.76,4.9603]
[1735273324832,8.44933631,190.82,190.78,3.08]
[1735273325028,8.44933631,190.82,190.76,8.44933631]
[1735273325231,8.44933631,190.82,190.78,2.6242]
[1735273325530,8.44933631,190.82,190.77,3.08]
[1735273326534,8.44933631,190.8,190.77,5.7043]
[1735273329834,8.44933631,190.78,190.74,3.08]
[1735273330035,8.44933631,190.76,190.74,3.08]
[1735273330737,8.44933631,190.76,190.74,5.7047]
[1735273331233,8.44933631,190.76,190.74,2.6247]
[1735273332940,8.44933631,190.78,190.74,2.6247]
[1735273333342,2.6242,190.79,190.74,2.6247]
[1735273333537,11.07353631,190.79,190.75,2.6247]
[1735273336738,11.07353631,190.79,190.74,2.6249]
[1735273338247,8.44933631,190.77,190.74,2.6249]
[1735273338642,8.44933631,190.77,190.73,11.52933631]
[1735273338847,29.35559239,190.85,190.75,8.44933631]
[1735273339043,8.44933631,190.84,190.78,8.44933631]
[1735273339250,8.44933631,190.84,190.79,3.08]
[1735273339940,71.78608658,190.87,190.79,3.08]
[1735273340139,2.6236,190.84,190.79,5.7042]
[1735273340443,11.07293631,190.84,190.79,5.7042]
[1735273341246,71.78608658,190.87,190.79,3.08]
[1735273341849,71.78608658,190.87,190.81,8.44933631]
[1735273342546,74.40918658,190.87,190.82,2.6237]
[1735273346250,2.6235,190.84,190.8,2.6239]
[1735273346453,8.44933631,190.86,190.8,2.6239]
[1735273346754,8.44933631,190.86,190.8,8.44933631]
[1735273346948,11.07253631,190.86,190.81,2.6238]
[1735273348055,71.78608658,190.87,190.82,8.44933631]
[1735273348354,74.40918658,190.87,190.83,2.6236]
[1735273349153,74.40918658,190.87,190.82,11.07303631]
[1735273349350,2.6232,190.86,190.82,11.07303631]
[1735273350254,11.07253631,190.86,190.82,2.6237]
[1735273351256,8.44933631,190.86,190.83,2.6236]
[1735273352265,8.44933631,190.86,190.81,8.44933631]
[1735273352956,8.44933631,190.86,190.84,2.6234]
[1735273353760,7.4192,190.88,190.84,2.6234]
[1735273354057,15.86853631,190.88,190.84,2.6234]
[1735273359353,2.6233,190.86,190.82,2.6237]
[1735273360560,13.24553631,190.88,190.81,8.44933631]
[1735273360759,2.6231,190.87,190.83,2.6236]
[1735273363671,7.4192,190.88,190.83,2.6236]
[1735273363869,15.86853631,190.88,190.83,2.6236]
[1735273364865,13.24553631,190.88,190.85,2.6233]
[1735273365070,2.6228,190.9,190.83,8.44933631]
[1735273365265,11.07213631,190.9,190.84,3.06]
[1735273366466,11.07213631,190.9,190.85,2.6233]
[1735273370466,8.44933631,190.86,190.84,3.06]
[1735273370669,11.07263631,190.86,190.84,3.06]
[1735273373869,11.07263631,190.86,190.82,2.6237]
[1735273374074,2.6234,190.85,190.81,5.6639]
[1735273374670,11.07253631,190.86,190.82,2.6237]
[1735273375570,8.44933631,190.86,190.83,2.6236]
[1735273376074,11.07243631,190.87,190.83,2.6236]
[1735273377567,2.6233,190.86,190.81,5.6638]
[1735273377970,2.6233,190.86,190.81,3.04]
[1735273378371,2.6233,190.86,190.82,2.6236]
[1735273378572,8.44933631,190.87,190.81,3.04]
[1735273379073,7.34546022,190.89,190.82,8.44933631]
[1735273379278,15.79479653,190.89,190.82,8.44933631]
[1735273379672,18.41769653,190.89,190.85,2.6233]
[1735273380277,11.07223631,190.89,190.85,2.6233]
[1735273380979,8.44933631,190.89,190.86,2.6232]
[1735273395592,8.44933631,190.87,190.86,2.6232]
[1735273395983,8.44933631,190.87,190.84,3.04]
[1735273396187,8.44933631,190.87,190.85,2.6232]
[1735273398693,2.6228,190.89,190.85,2.6232]
[1735273399090,8.44933631,190.88,190.85,2.6232]
[1735273399995,2.6231,190.87,190.84,5.6635]
[1735273400493,8.44933631,190.86,190.78,3.1703]
[1735273400693,11.07253631,190.86,190.83,2.6236]
[1735273401292,11.07283631,190.84,190.8,2.624]
[1735273401493,8.44933631,190.84,190.79,3.04]
[1735273401693,8.44933631,190.87,190.8,8.44933631]
[1735273401889,8.44933631,190.87,190.85,2.6232]
[1735273402291,15.79479653,190.87,190.79,3.04]
[1735273402496,18.41789653,190.87,190.81,8.44933631]
[1735273403399,18.41789653,190.87,190.83,2.6236]
[1735273403598,11.07243631,190.87,190.83,2.6236]
[1735273404899,8.44933631,190.87,190.83,2.6236]
[1735273405798,11.07243631,190.87,190.83,2.6236]
[1735273407896,8.44933631,190.85,190.8,3.02]
[1735273408091,8.44933631,190.81,190.7,29.11444142]
[1735273408296,11.07323631,190.81,190.77,2.6243]
[1735273408599,8.44933631,190.81,190.77,2.6243]
[1735273410691,8.44933631,190.81,190.73,8.44933631]
[1735273410890,8.44933631,190.79,190.76,2.6245]
[1735273413703,2.6239,190.81,190.76,2.6245]
[1735273414006,11.07323631,190.81,190.76,2.6245]
[1735273414205,11.07323631,190.81,190.73,8.44933631]
[1735273414404,2.6236,190.83,190.75,8.44933631]
[1735273414703,11.07293631,190.83,190.75,8.44933631]
[1735273415204,11.07293631,190.83,190.77,8.44933631]
[1735273415408,11.07293631,190.83,190.79,2.6241]
[1735273416100,8.44933631,190.83,190.73,4.717]
[1735273416295,8.44933631,190.83,190.75,8.44933631]
[1735273416701,8.44933631,190.81,190.75,8.44933631]
[1735273417102,8.44933631,190.81,190.73,3.129]
[1735273417303,8.44933631,190.81,190.74,8.44933631]
[1735273417500,8.44933631,190.83,190.76,8.44933631]
[1735273417898,8.44933631,190.83,190.79,2.6241]
[1735273419009,8.44933631,190.83,190.74,8.44933631]
[1735273419198,8.44933631,190.83,190.78,2.6243]
[1735273420210,8.44933631,190.81,190.78,2.6243]